bitfinex-derivatives/quotes_SOLF0:USTF0_20250606
["timestamp","ask_amount","ask_price","bid_price","bid_amount"]
[1749214766847,6.21245493,150.61,150.56,4.93492561]
[1749214767043,4.49094271,150.6,150.56,4.93492561]
[1749214767346,32.02888,150.63,150.58,4.93492561]
[1749214767548,32.02888,150.63,150.57,4.93492561]
[1749214767750,0.04603342,150.62,150.59,0.04611679]
[1749214768048,0.04603342,150.62,150.59,6.68181679]
[1749214768744,6.68093342,150.62,150.59,6.68181679]
[1749214769545,6.68093342,150.62,150.59,11.6167424]
[1749214770347,6.68093342,150.62,150.59,6.68181679]
[1749214770747,6.6355,150.6,150.59,0.04611679]
[1749214773448,9.45410411,150.61,150.54,2.1793]
[1749214773650,4.5191785,150.6,150.54,2.1793]
[1749214773849,4.93492561,150.61,150.54,2.1793]
[1749214774047,6.6371,150.57,150.54,8.8173]
[1749214774446,6.68105264,150.57,150.54,8.86576773]
[1749214775051,0.04395264,150.57,150.55,6.6377]
[1749214775648,0.04395264,150.57,150.54,2.22776773]
[1749214776347,0.04395264,150.57,150.55,6.6377]
[1749214776546,0.04395264,150.57,150.54,2.22776773]
[1749214777546,6.68085264,150.57,150.54,8.86566773]
[1749214779550,6.68085264,150.57,150.55,6.6377]
[1749214780052,6.68085264,150.57,150.54,8.86576773]
[1749214780653,0.04395264,150.57,150.55,6.6377]
[1749214780953,0.04395264,150.57,150.54,7.16269334]
[1749214781349,0.04395264,150.57,150.56,6.6373]
[1749214782153,9.82362811,150.62,150.57,6.6365]
[1749214782356,4.49258414,150.62,150.57,6.6365]
[1749214782556,6.6355,150.61,150.56,33.94]
[1749214782757,6.6355,150.61,150.58,6.6362]
[1749214783163,6.67772442,150.61,150.58,6.68679508]
[1749214784561,0.04222442,150.61,150.58,0.05059508]
[1749214785253,0.04222442,150.61,150.6,6.6355]
[1749214785647,0.04222442,150.61,150.59,6.6358]
[1749214786450,0.04222442,150.61,150.58,6.68679508]
[1749214786451,6.67732442,150.61,150.58,6.68679508]
[1749214786652,0.04222442,150.61,150.58,0.05059508]
[1749214786855,6.6356,150.6,150.58,6.68699508]
[1749214787152,0.04222442,150.61,150.58,0.05059508]
[1749214787551,6.636,150.59,150.58,0.05059508]
[1749214799462,6.638,150.55,150.53,2.0932]
[1749214799662,14.78813245,150.58,150.53,2.0932]
[1749214799869,9.85301766,150.61,150.53,2.0932]
[1749214800069,14.78836424,150.6,150.55,6.6377]
[1749214800271,4.93492561,150.62,150.53,40.94812561]
[1749214800474,0.04955706,150.59,150.56,6.68778171]
[1749214800668,0.04955706,150.59,150.56,0.05078171]
[1749214800968,0.04955706,150.59,150.58,6.6363]
[1749214802570,32.02888,150.63,150.57,38.85492561]
[1749214802772,32.02888,150.63,150.59,4.93492561]
[1749214803073,32.02888,150.63,150.62,6.6346]
[1749214803268,4.93492561,150.69,150.61,38.85492561]
[1749214803472,0.0470402,150.67,150.65,6.633]
[1749214803668,0.0470402,150.67,150.63,4.98580337]
[1749214804264,0.0470402,150.67,150.65,6.6329]
[1749214805573,0.0470402,150.67,150.66,6.6328]
[1749214806175,0.0470402,150.67,150.65,6.6331]
[1749214807179,0.0470402,150.67,150.66,6.6328]
[1749214808784,0.0470402,150.67,150.65,6.6331]
[1749214809579,0.0470402,150.67,150.64,2.1773]
[1749214810486,0.0470402,150.67,150.65,6.633]
[1749214810987,0.0470402,150.67,150.65,40.513]
[1749214811181,0.0470402,150.67,150.66,6.6329]
[1749214811584,38.1898,150.74,150.67,6.6321]
[1749214811985,6.6309,150.71,150.67,6.6321]
[1749214812185,38.1898,150.74,150.67,6.6321]
[1749214812488,4.93492561,150.71,150.65,33.88]
[1749214812686,0.0446304,150.7,150.66,0.04632509]
[1749214813087,6.6316,150.69,150.66,0.04632509]
[1749214813288,6.6316,150.69,150.66,6.67902509]
[1749214813489,0.0446304,150.7,150.66,0.04632509]
[1749214814289,6.6316,150.69,150.66,0.04632509]
[1749214814792,6.6316,150.69,150.66,6.67902509]
[1749214816284,6.6759304,150.7,150.67,6.6324]
[1749214816494,0.0446304,150.7,150.67,6.6324]
[1749214816996,6.6318,150.69,150.66,6.67902509]
[1749214818394,0.0446304,150.7,150.66,6.67902509]
[1749214818395,6.632,150.68,150.66,6.67902509]
[1749214818597,0.0446304,150.7,150.66,6.67902509]
[1749214819094,6.6317,150.69,150.66,6.67902509]
[1749214819292,0.0446304,150.7,150.66,6.67902509]
[1749214820697,6.6319,150.69,150.66,6.67902509]
[1749214821592,6.6321,150.68,150.66,6.67902509]
[1749214822602,0.0446304,150.7,150.67,6.6324]
[1749214823193,0.0446304,150.7,150.68,6.6319]
[1749214823394,0.0446304,150.7,150.66,0.04632509]
[1749214823697,6.6759304,150.7,150.66,0.04632509]
[1749214823895,33.88,150.78,150.69,4.93492561]
[1749214824193,6.6294,150.74,150.71,6.6303]
[1749214824392,41.04892561,150.78,150.69,38.81492561]
[1749214824801,6.6288,150.76,150.71,4.93492561]
[1749214825010,0.04715805,150.75,150.73,4.93492561]
[1749214825403,0.04715805,150.75,150.74,6.6293]
[1749214826104,33.88,150.81,150.76,6.6283]
[1749214826402,6.6274,150.79,150.76,6.6283]
[1749214826801,33.88,150.81,150.74,4.93492561]
[1749214827206,0.04389707,150.79,150.76,0.04776096]
[1749214827704,6.6279,150.78,150.76,0.04776096]
[1749214828008,0.04389707,150.79,150.76,0.04776096]
[1749214828710,6.628,150.77,150.76,0.04776096]
[1749214829404,4.93492561,150.78,150.7,4.5698]
[1749214829608,4.93492561,150.78,150.7,36.1558]
[1749214830010,6.6295,150.74,150.71,6.6306]
[1749214830407,6.6301,150.73,150.71,0.0437394]
[1749214831208,6.67720518,150.74,150.71,6.6741394]
[1749214832610,6.6298,150.73,150.71,6.6741394]
[1749214833710,6.67720518,150.74,150.71,6.6741394]
[1749214835116,6.6298,150.73,150.71,6.6741394]
[1749214835318,0.04770518,150.74,150.71,6.6741394]
[1749214835817,6.67740518,150.74,150.71,0.0437394]
[1749214836618,6.67740518,150.74,150.71,6.6740394]
[1749214836918,6.67740518,150.74,150.71,0.0437394]
[1749214837718,0.04770518,150.74,150.71,0.0437394]
[1749214838213,0.04770518,150.74,150.72,6.6298]
[1749214838408,0.04770518,150.74,150.71,0.0437394]
[1749214838814,0.04770518,150.74,150.73,6.6298]
[1749214840917,33.86,150.81,150.72,4.93492561]
[1749214841112,38.79492561,150.81,150.74,4.93492561]
[1749214841415,6.6279,150.78,150.75,6.6287]
[1749214841616,6.6279,150.78,150.74,4.93492561]
[1749214841918,6.67409856,150.78,150.74,11.60739829]
[1749214842220,6.6281,150.77,150.74,6.67247268]
[1749214842818,6.6281,150.77,150.75,6.6289]
[1749214843518,6.67399856,150.78,150.75,6.6289]
[1749214844917,6.6281,150.77,150.75,6.6289]
[1749214845121,6.6281,150.77,150.74,6.67247268]
[1749214845829,6.6285,150.76,150.74,6.67247268]
[1749214846123,0.04619856,150.78,150.75,6.6289]
[1749214846618,0.04619856,150.78,150.74,6.67257268]
[1749214847018,11.27527011,150.77,150.74,6.67257268]
[1749214847319,6.6284,150.77,150.74,6.67257268]
[1749214849322,6.6286,150.76,150.74,6.67257268]
[1749214849522,4.65205175,150.77,150.74,6.67257268]
[1749214849721,0.04619856,150.78,150.74,6.67257268]
[1749214849911,4.65205174,150.77,150.74,6.67257268]
[1749214850215,0.04619856,150.78,150.74,6.67257268]
[1749214850411,4.6574215,150.77,150.74,0.04337268]
[1749214850614,0.04619856,150.78,150.74,0.04337268]
[1749214850915,4.65830894,150.77,150.74,0.04337268]
[1749214851120,0.04619856,150.78,150.74,0.04337268]
[1749214851320,4.6584421,150.77,150.74,0.04337268]
[1749214851511,6.6287,150.76,150.74,6.67267268]
[1749214853726,6.6283,150.77,150.74,6.67267268]
[1749214853922,0.04619856,150.78,150.74,6.67267268]
[1749214854113,4.65939389,150.77,150.74,6.67267268]
[1749214854317,11.28790246,150.76,150.74,6.67267268]
[1749214854518,6.6285,150.76,150.74,6.67267268]
[1749214854818,6.6283,150.77,150.74,6.67267268]
[1749214855518,6.6283,150.77,150.75,6.6288]
[1749214855723,0.04619856,150.78,150.74,0.04337268]
[1749214856026,0.04619856,150.78,150.76,6.6283]
[1749214857227,0.04619856,150.78,150.77,6.6281]
[1749214857820,4.67628474,150.78,150.74,38.79829829]
[1749214858029,6.67419856,150.78,150.74,38.79829829]
[1749214858321,0.04619856,150.78,150.74,40.49267268]
[1749214858531,5.37654151,150.78,150.74,33.86337268]
[1749214858722,6.6283,150.77,150.74,33.86337268]
[1749214858923,6.6283,150.77,150.75,6.6287]
[1749214859323,6.67409856,150.78,150.76,6.6284]
[1749214859723,0.04619856,150.78,150.74,33.86337268]
[1749214859923,6.6281,150.77,150.75,6.6286]
[1749214860328,0.04619856,150.78,150.74,33.86337268]
[1749214860531,0.04619856,150.78,150.74,38.79829829]
[1749214860824,0.04619856,150.78,150.76,4.93492561]
[1749214861028,0.04619856,150.78,150.77,6.6281]
[1749214862520,4.64603694,150.81,150.8,6.6268]
[1749214862720,33.82,150.85,150.8,4.93492561]
[1749214862927,9.97649696,150.84,150.8,6.6264]
[1749214863233,33.82,150.85,150.78,38.75492561]
[1749214863425,6.6256,150.83,150.8,0.04758979]
[1749214863633,0.04379945,150.83,150.81,6.6263]
[1749214864332,0.04379945,150.83,150.82,6.6259]
[1749214864830,0.04379945,150.83,150.8,0.04758979]
[1749214865131,0.04379945,150.83,150.8,4.9825154]
[1749214865532,0.04379945,150.83,150.82,6.6259]
[1749214867032,33.82,150.88,150.85,6.6243]
[1749214867331,5.32650406,150.87,150.85,6.6243]
[1749214867535,33.82,150.88,150.85,6.6243]
[1749214867536,40.4435,150.88,150.85,6.6243]
[1749214868131,0.04968198,150.88,150.85,0.04926349]
[1749214868738,0.04968198,150.88,150.87,6.6237]
[1749214868941,33.82,150.96,150.86,38.75492561]
[1749214869144,10.00275098,150.95,150.89,4.93492561]
[1749214869443,40.44,150.96,150.89,4.93492561]
[1749214869638,4.93492561,150.93,150.83,6.7182]
[1749214869947,0.04977891,150.9,150.86,0.04821993]
[1749214870338,0.04977891,150.9,150.86,4.98314554]
[1749214871543,0.04977891,150.9,150.89,6.6228]
[1749214873042,4.93492561,150.97,150.89,6.6228]
[1749214873043,6.21245493,151.02,150.89,11.55492561]
[1749214873250,4.68942987,151.05,150.99,4.93492561]
[1749214873450,6.5361,151.09,151.03,4.93492561]
[1749214873647,16.53496863,151.09,151.03,4.93492561]
[1749214874042,133.95980467,151.08,150.91,33.78]
[1749214874351,4.67654148,151.07,150.94,4.93492561]
[1749214874547,4.93492561,151.03,150.97,6.6189]
[1749214874850,33.78,151.02,150.97,6.6189]
[1749214875054,0.0492136,151.01,150.98,0.04379344]
[1749214876546,6.6184,150.99,150.98,0.04379344]
[1749214877451,6.6182,151.0,150.98,0.04379344]
[1749214877647,0.0492136,151.01,150.98,0.04379344]
[1749214877847,6.6184,150.99,150.98,0.04379344]
[1749214883749,6.6182,151.0,150.98,0.04379344]
[1749214884159,0.0492136,151.01,150.98,0.04379344]
[1749214884954,6.6671136,151.01,150.98,0.04379344]
[1749214885857,6.6182,151.0,150.98,0.04379344]
[1749214889263,6.6184,150.99,150.98,0.04379344]
[1749214889562,0.0492136,151.01,150.98,0.04379344]
[1749214889862,6.6182,151.0,150.98,0.04379344]
[1749214893266,6.6181,151.0,150.98,6.66249344]
[1749214893460,6.6181,151.0,150.98,0.04379344]
[1749214894261,6.6184,150.99,150.98,0.04379344]
[1749214894861,8.03700547,150.99,150.92,33.74]
[1749214895260,8.03700547,150.99,150.93,6.6208]
[1749214895462,33.74,150.98,150.91,2.2667]
[1749214895660,33.74,150.98,150.89,41.77700547]
[1749214895858,33.74,150.98,150.92,0.04392365]
[1749214895859,6.6209,150.94,150.92,0.04392365]
[1749214896063,0.04928802,150.95,150.92,0.04392365]
[1749214896362,6.621,150.94,150.92,0.04392365]
[1749214896961,0.04928802,150.95,150.92,0.04392365]
[1749214897162,6.6206,150.94,150.92,0.04392365]
[1749214897869,0.04928802,150.95,150.93,6.6208]
[1749214898066,0.04928802,150.95,150.93,8.03700547]
[1749214898567,0.04928802,150.95,150.94,6.6206]
[1749214902371,40.3377,151.01,150.98,6.6187]
[1749214903369,40.38854991,151.01,150.98,6.66206472]
[1749214906260,6.6181,151.0,150.98,6.66206472]
[1749214906461,33.77084991,151.01,150.98,0.04336472]
[1749214906667,6.6182,151.0,150.98,0.04336472]
[1749214907269,6.6185,150.99,150.98,0.04336472]
[1749214907572,0.05084991,151.01,150.98,0.04336472]
[1749214907874,0.05084991,151.01,151.0,6.618]
[1749214919082,4.84389596,151.01,151.0,6.618]
[1749214920084,10.22741184,151.01,150.98,0.04336472]
[1749214920286,10.17656193,151.0,150.98,0.04336472]
[1749214920484,4.79304605,150.99,150.98,0.04336472]
[1749214921079,6.66864991,151.01,150.98,6.66186472]
[1749214921383,4.78732101,151.0,150.98,0.04336472]
[1749214921585,4.78732101,150.99,150.98,6.66226472]
[1749214922982,0.05084991,151.01,151.0,6.618]
[1749214923182,4.84842881,151.01,151.0,6.618]
[1749214923582,4.84826733,151.01,151.0,6.618]
[1749214926287,0.05084991,151.01,151.0,6.618]
[1749214927885,9.83079831,151.1,151.06,6.6154]
[1749214928090,10.15184058,151.07,151.02,7.63889831]
[1749214928285,10.15184489,151.06,151.02,7.63889831]
[1749214928485,10.15184489,151.05,151.04,7.63889831]
[1749214928783,5.37415085,151.08,151.04,7.63889831]
[1749214928998,5.37415085,151.07,151.06,6.6154]
[1749214929184,0.04571666,151.08,151.04,0.04234572]
[1749214929485,0.04571666,151.08,151.06,7.63889831]
[1749214929690,0.04571666,151.08,151.06,41.35889831]
[1749214929887,0.04571666,151.08,151.07,6.6149]
[1749214930082,0.04571666,151.08,151.07,14.25379831]
[1749214930788,33.72,151.14,151.11,6.613]
[1749214931186,33.72,151.14,151.09,7.63889831]
[1749214931491,6.5878,151.16,151.09,7.63889831]
[1749214931885,6.6123,151.13,151.11,0.04396034]
[1749214932690,6.6128,151.12,151.11,0.04396034]
[1749214934992,0.05089535,151.14,151.11,0.04396034]
[1749214935497,6.66289535,151.14,151.11,6.65676034]
[1749214935990,6.66289535,151.14,151.11,0.04396034]
[1749214936194,6.6123,151.13,151.11,6.65696034]
[1749214936492,7.63889831,151.12,151.03,38.026]
[1749214936690,38.0138,151.13,151.07,6.6149]
[1749214936895,7.63889831,151.12,151.03,43.60109831]
[1749214937498,0.04265148,151.1,151.06,0.0497169]
[1749214938592,6.65655148,151.1,151.07,6.6149]
[1749214938794,0.04265148,151.1,151.06,0.0497169]
[1749214938989,0.04265148,151.1,151.08,6.6144]
[1749214939896,0.04265148,151.1,151.09,6.6141]
[1749214941295,0.04265148,151.1,151.08,6.6144]
[1749214941507,7.63889831,151.09,151.06,0.0497169]
[1749214942305,7.63889831,151.07,151.06,0.0497169]
[1749214942501,0.04265148,151.1,151.06,0.0497169]
[1749214942703,6.6145,151.09,151.06,6.6651169]
[1749214943307,14.29534979,151.1,151.07,6.6149]
[1749214943507,14.29534979,151.1,151.06,0.0497169]
[1749214943508,6.65645148,151.1,151.06,0.0497169]
[1749214943903,0.04265148,151.1,151.06,0.0497169]
[1749214944506,6.65655148,151.1,151.07,6.6148]
[1749214944702,0.04265148,151.1,151.07,6.6148]
[1749214945106,0.04265148,151.1,151.06,0.0497169]
[1749214945403,0.04265148,151.1,151.06,7.68861521]
[1749214945798,0.04265148,151.1,151.06,0.0497169]
[1749214946198,6.65655148,151.1,151.07,6.6147]
[1749214946395,0.04265148,151.1,151.06,0.0497169]
[1749214947507,6.65665148,151.1,151.06,0.0497169]
[1749214947708,0.04265148,151.1,151.06,0.0497169]
[1749214948409,0.04265148,151.1,151.07,6.6147]
[1749214948605,7.68154979,151.1,151.06,0.0497169]
[1749214948810,6.6143,151.09,151.06,6.6650169]
[1749214950114,6.6143,151.09,151.07,6.6147]
[1749214950313,6.65645148,151.1,151.06,0.0497169]
[1749214950513,0.04265148,151.1,151.06,0.0497169]
[1749214950713,0.04265148,151.1,151.07,6.6147]
[1749214950915,6.65655148,151.1,151.07,6.6147]
[1749214951109,0.04265148,151.1,151.06,6.6650169]
[1749214951315,0.04265148,151.1,151.06,0.0497169]
[1749214951516,2.15395148,151.1,151.06,0.0497169]
[1749214951716,7.63889831,151.09,151.06,0.0497169]
[1749214951912,14.25379831,151.07,151.06,0.0497169]
[1749214958214,11.9575844,151.08,151.06,0.0497169]
[1749214958513,6.6147,151.08,151.06,0.0497169]
[1749214958714,33.68,151.09,151.06,0.0497169]
[1749214959716,40.2943,151.09,151.07,6.6147]
[1749214959917,40.2943,151.09,151.06,0.0497169]
[1749214960319,40.2943,151.09,151.06,6.6647169]
[1749214960620,6.6146,151.08,151.06,0.0497169]
[1749214960918,33.68,151.09,151.06,0.0497169]
[1749214961318,6.6145,151.08,151.06,0.0497169]
[1749214961816,6.6149,151.08,151.06,0.0497169]
[1749214962020,33.68,151.09,151.06,0.0497169]
[1749214962521,6.615,151.07,151.06,0.0497169]
[1749214965420,6.6147,151.08,151.06,6.6649169]
[1749214965624,6.6147,151.08,151.06,0.0497169]
[1749214966014,6.615,151.07,151.06,0.0497169]
[1749214968521,6.6147,151.08,151.06,0.0497169]
[1749214968923,47.93319831,151.09,151.06,0.0497169]
[1749214969121,40.2943,151.09,151.06,0.0497169]
[1749214969425,33.68,151.09,151.07,6.6147]
[1749214969616,33.68,151.09,151.06,0.0497169]
[1749214969926,33.68,151.09,151.07,6.6146]
[1749214970828,33.68,151.09,151.08,6.6145]
[1749214971026,33.68,151.09,151.06,0.0497169]
[1749214971223,40.2942,151.09,151.06,0.0497169]
[1749214971728,40.2942,151.09,151.07,6.6146]
[1749214972527,33.68,151.09,151.07,6.6146]
[1749214973328,40.2942,151.09,151.07,6.6146]
[1749214978129,33.68,151.09,151.07,6.6146]
[1749214979130,40.2941,151.09,151.07,6.6146]
[1749214979432,6.6141,151.09,151.07,6.6146]
[1749214979730,6.65645148,151.1,151.08,6.6145]
[1749214979933,5.36796993,151.09,151.06,0.0497169]
[1749214980126,6.65645148,151.1,151.06,0.0497169]
[1749214980533,0.04265148,151.1,151.06,0.0497169]
[1749214981034,0.04265148,151.1,151.07,6.6147]
[1749214981336,0.04265148,151.1,151.06,0.0497169]
[1749214981527,7.63889831,151.07,150.99,2.2526]
[1749214981734,7.63889831,151.03,150.97,12.13887075]
[1749214981925,7.63889831,151.01,150.97,12.13887075]
[1749214982128,7.63889831,150.99,150.97,12.13887075]
[1749214982323,41.29889831,150.99,150.93,16.18516101]
[1749214982524,14.25869831,150.96,150.93,22.80606101]
[1749214982837,0.0508356,150.98,150.94,0.05083878]
[1749214983137,0.0508356,150.98,150.96,6.6196]
[1749214983434,0.0508356,150.98,150.94,0.05083878]
[1749214983735,0.0508356,150.98,150.96,6.6197]
[1749214984137,0.0508356,150.98,150.94,0.05083878]
[1749214984630,7.68973391,150.98,150.94,0.05083878]
[1749214985035,14.30893391,150.98,150.95,6.6202]
[1749214986034,6.6194,150.97,150.94,6.67133878]
[1749214986329,7.68973391,150.98,150.94,0.05083878]
[1749214986735,14.30873391,150.98,150.95,6.6199]
[1749214987437,7.68973391,150.98,150.94,0.05083878]
[1749214988037,0.0508356,150.98,150.94,0.05083878]
[1749214989041,6.6698356,150.98,150.95,6.62]
[1749214990942,0.0508356,150.98,150.94,6.67123878]
[1749214991341,6.6193,150.97,150.95,6.6202]
[1749214991540,0.0508356,150.98,150.94,0.05083878]
[1749214992044,6.6198,150.96,150.94,6.67143878]
[1749214992645,6.6196,150.97,150.94,6.67143878]
[1749214993140,6.6700356,150.98,150.94,0.05083878]
[1749214993347,0.0508356,150.98,150.94,0.05083878]
[1749214993644,0.0508356,150.98,150.96,6.6195]
[1749214994045,0.0508356,150.98,150.94,0.05083878]
[1749214994245,0.0508356,150.98,150.94,6.67123878]
[1749214994446,7.63889831,150.97,150.94,0.05083878]
[1749214994748,6.6202,150.95,150.94,0.05083878]
[1749214995248,40.3002,150.95,150.94,0.05083878]
[1749214995441,33.68,150.95,150.94,0.05083878]
[1749214995841,33.68,150.95,150.94,6.67143878]
[1749214996141,33.68,150.95,150.94,0.05083878]
[1749214996345,33.68,150.95,150.94,6.67143878]
[1749214996942,0.0508356,150.98,150.97,6.6193]
[1749215012361,0.0508356,150.98,150.96,14.25849831]
[1749215012956,0.0508356,150.98,150.96,6.6196]
[1749215013660,0.0508356,150.98,150.97,6.6193]
[1749215014057,0.0508356,150.98,150.95,4.3747]
[1749215014256,0.0508356,150.98,150.97,6.6193]
[1749215017164,0.0508356,150.98,150.95,4.3747]
[1749215017764,0.0508356,150.98,150.97,6.6193]
[1749215024274,6.17814275,151.06,151.03,6.6164]
[1749215024570,5.40061583,151.05,151.0,7.63889831]
[1749215024767,13.03945306,151.04,151.0,6.6178]
[1749215024966,13.03945306,151.04,150.97,33.66]
[1749215024967,10.04722708,151.03,150.97,33.66]
[1749215025163,7.63889831,151.04,150.97,33.66]
[1749215025164,4.6464334,151.02,150.97,33.66]
[1749215025365,0.04369848,151.01,150.99,6.6182]
[1749215025972,6.66149848,151.01,150.99,6.6182]
[1749215026865,0.04369848,151.01,150.99,6.6182]
[1749215028269,6.66129848,151.01,150.99,6.6182]
[1749215028476,6.66129848,151.01,150.98,0.04539615]
[1749215028672,0.04369848,151.01,150.98,0.04539615]
[1749215028874,0.04369848,151.01,150.99,6.6185]
[1749215030775,6.66129848,151.01,150.99,6.6185]
[1749215031573,6.66129848,151.01,150.98,6.66409615]
[1749215032275,6.66129848,151.01,150.99,6.6184]
[1749215032677,0.04369848,151.01,150.98,0.04539615]
[1749215032975,0.04369848,151.01,151.0,6.618]
[1749215034668,0.04369848,151.01,150.99,6.6183]
[1749215035272,0.04369848,151.01,150.98,6.66399615]
[1749215035475,4.66247507,151.0,150.98,6.66399615]
[1749215035672,0.04369848,151.01,150.98,6.66399615]
[1749215036275,4.66305326,151.0,150.98,6.66399615]
[1749215036580,0.04369848,151.01,150.98,6.66399615]
[1749215036768,6.66149848,151.01,150.98,6.66399615]
[1749215036970,4.66415783,151.0,150.98,6.66399615]
[1749215037178,6.66149848,151.01,150.98,0.04539615]
[1749215037376,5.41599524,151.0,150.98,0.04539615]
[1749215037576,6.66149848,151.01,150.98,0.04539615]
[1749215037873,12.03411558,151.0,150.98,6.66409615]
[1749215038176,6.6182,151.0,150.98,6.66409615]
[1749215038879,0.04369848,151.01,150.98,0.04539615]
[1749215039072,0.04369848,151.01,150.98,7.68429446]
[1749215039275,0.04369848,151.01,151.0,7.63889831]
[1749215039479,0.04369848,151.01,151.0,14.25689831]
[1749215041773,10.0806331,151.05,151.04,6.6163]
[1749215042378,10.07969019,151.05,151.04,6.6163]
[1749215042577,4.66080844,151.05,151.04,6.6163]
[1749215042979,4.66079472,151.05,151.04,6.6163]
[1749215043180,0.04253238,151.06,151.05,6.6158]
[1749215043979,0.04253238,151.06,151.03,0.04297551]
[1749215044279,0.04253238,151.06,151.0,7.63889831]
[1749215044280,7.63889831,151.04,150.95,16.45105378]
[1749215044479,6.6206,150.95,150.91,12.07635378]
[1749215044684,7.63889831,150.97,150.9,4.3493]
[1749215044976,10.08097855,150.96,150.9,4.3493]
[1749215045280,10.08135118,150.95,150.93,6.6209]
[1749215045478,4.66213734,150.94,150.93,6.6209]
[1749215045679,0.04978203,150.95,150.93,6.6209]
[1749215046278,4.69484064,150.94,150.93,6.6209]
[1749215046672,0.04978203,150.95,150.94,6.6206]
[1749215046879,10.17936022,150.95,150.94,6.6206]
[1749215047278,4.76505608,150.95,150.94,6.6206]
[1749215047481,0.04978203,150.95,150.94,6.6206]
[1749215047681,4.76480425,150.95,150.94,6.6206]
[1749215048278,0.04978203,150.95,150.94,6.6206]
[1749215050683,5.40641327,150.99,150.98,6.6189]
[1749215050888,33.66,151.01,150.95,7.63889831]
[1749215051091,10.06654235,151.0,150.96,7.63889831]
[1749215051283,6.17640668,151.03,150.98,7.63889831]
[1749215051482,10.06632545,151.02,150.98,7.63889831]
[1749215051681,5.40601716,151.01,150.98,7.68379086]
[1749215051886,0.05073013,151.02,150.98,7.68379086]
[1749215052686,0.05073013,151.02,151.0,6.6177]
[1749215053487,0.05073013,151.02,150.98,0.04489255]
[1749215053688,6.66823013,151.02,150.98,0.04489255]
[1749215053888,6.66823013,151.02,150.99,6.6181]
[1749215054288,6.6176,151.01,150.98,0.04489255]
[1749215054493,0.05073013,151.02,150.99,6.6184]
[1749215054687,0.05073013,151.02,150.98,0.04489255]
[1749215055292,11.30737427,151.01,150.98,6.66349255]
[1749215055492,6.6179,151.01,150.98,6.66349255]
[1749215055687,6.6179,151.01,150.99,6.6184]
[1749215055887,6.66803013,151.02,150.99,6.6184]
[1749215056791,6.66803013,151.02,151.0,6.618]
[1749215057293,6.66803013,151.02,150.99,6.6182]
[1749215057491,6.6176,151.01,150.98,0.04489255]
[1749215057896,6.6176,151.01,150.98,6.66339255]
[1749215058083,6.66803013,151.02,150.98,6.66339255]
[1749215058290,6.66803013,151.02,150.98,0.04489255]
[1749215058491,6.66803013,151.02,150.99,6.6184]
[1749215059393,6.6176,151.01,150.99,6.6184]
[1749215059589,0.05073013,151.02,150.98,0.04489255]
[1749215059788,4.70759629,151.01,150.98,0.04489255]
[1749215060001,0.05073013,151.02,150.98,0.04489255]
[1749215060188,10.12058863,151.01,150.98,0.04489255]
[1749215060493,6.6177,151.01,150.98,6.66369255]
[1749215060693,4.70286721,151.0,150.98,6.66369255]
[1749215060894,6.6177,151.01,150.98,6.66369255]
[1749215061095,0.05073013,151.02,150.98,0.04489255]
[1749215061297,4.70286369,151.01,150.98,0.04489255]
[1749215061497,0.05073013,151.02,150.98,0.04489255]
[1749215061698,6.66823013,151.02,150.99,6.6182]
[1749215061899,4.70237123,151.01,150.98,0.04489255]
[1749215062197,6.6185,150.99,150.98,0.04489255]
[1749215062398,5.41369531,150.99,150.94,6.6205]
[1749215062700,5.41369531,150.98,150.92,7.63889831]
[1749215062902,6.6192,150.98,150.94,6.6203]
[1749215063201,4.70167446,150.97,150.94,6.6203]
[1749215063395,0.04235308,150.97,150.94,6.67024186]
[1749215063591,0.04235308,150.97,150.95,6.6202]
[1749215063995,6.66175308,150.97,150.94,0.04994186]
[1749215064197,6.66175308,150.97,150.94,6.67034186]
[1749215064494,0.04235308,150.97,150.94,0.04994186]
[1749215065096,0.04235308,150.97,150.95,6.6201]
[1749215065497,6.66165308,150.97,150.95,6.6201]
[1749215065798,0.04235308,150.97,150.95,6.6201]
[1749215066497,0.04235308,150.97,150.94,6.67034186]
[1749215066697,6.66195308,150.97,150.94,6.67034186]
[1749215067592,6.6198,150.96,150.94,6.67034186]
[1749215067798,7.68125139,150.97,150.94,0.04994186]
[1749215068191,6.62,150.96,150.94,0.04994186]
[1749215070602,0.04235308,150.97,150.94,0.04994186]
[1749215071000,0.04235308,150.97,150.96,6.6198]
[1749215071694,5.308e-05,150.97,150.96,6.6198]
[1749215076101,33.64,151.03,151.02,6.6171]
[1749215076308,33.64,151.03,150.99,7.63889831]